fUSD/lending_fUSD_20260621
["ID","MTS","AMOUNT","RATE_DAILY","PERIOD"]
[425849780,1781993448000,-6578.92,0.00018533,2]
[425849778,1781993448000,-6927.96,0.00018533,2]
[425849782,1781993448000,-499.99,0.00018533,2]
[425849736,1781993448000,-1672.7364795,0.00017824,2]
[425849755,1781993448000,-1160.0,0.00018318,5]
[425849733,1781993448000,-183.73,0.00017628,2]
[425849685,1781993448000,-539.34740884,0.00016494,2]
[425849739,1781993448000,-1266.95610069,0.00017896,2]
[425849677,1781993448000,-232.88,0.00016438,2]
[425849679,1781993448000,-9131.5900683,0.00016451,2]
[425849683,1781993448000,-300.42,0.00016472,2]
[425849775,1781993448000,-4999.99,0.00018533,2]
[425849681,1781993448000,-539.34740884,0.00016463,2]
[425849697,1781993448000,-604.87,0.000166,2]
[425849690,1781993448000,-539.34740884,0.0001655,2]
[425849694,1781993448000,-539.34740884,0.00016565,2]
[425849688,1781993448000,-1266.95610069,0.00016519,2]
[425849692,1781993448000,-539.34740884,0.0001656,2]
[425849701,1781993448000,-1555.5,0.00016728,2]
[425849743,1781993448000,-9131.5900683,0.0001792,2]
[425849699,1781993448000,-193.44209275,0.00016601,2]
[425849716,1781993448000,-2370.48620157,0.0001698,2]
[425849714,1781993448000,-1266.95610069,0.00016978,2]
[425849721,1781993448000,-776.88,0.000171,2]
[425849704,1781993448000,-539.34740884,0.00016761,2]
[425849718,1781993448000,-539.34740884,0.00017058,2]
[425849710,1781993448000,-539.34740884,0.00016915,2]
[425849723,1781993448000,-153.0,0.00017148,2]
[425849706,1781993448000,-471.62,0.000168,2]
[425849712,1781993448000,-9131.5900683,0.00016941,2]
[425849708,1781993448000,-736.0,0.00016845,2]
[425849730,1781993448000,-9131.5900683,0.00017431,2]
[425849725,1781993448000,-1613.0535,0.00017276,2]
[425849785,1781993448000,-6030.07,0.00018533,2]
[425849808,1781993448000,-6081.0,0.0001881,2]
[425849791,1781993448000,-193.44209275,0.00018601,2]
[425849846,1781993448000,-527.0,0.00019,2]
[425849850,1781993448000,-408.82106728,0.00019,2]
[425849855,1781993448000,-158.94408258,0.0001911,2]
[425849852,1781993448000,-471.62,0.00019,2]
[425849865,1781993448000,-1865.36488656,0.00019468,2]
[425849861,1781993448000,-2370.48620157,0.00019285,2]
[425849875,1781993448000,-292.0,0.0002,2]
[425849871,1781993448000,-180.577745,0.0002,2]
[425849878,1781993448000,-166.0,0.0002,2]
[425849876,1781993448000,-512.0,0.0002,2]
[425849874,1781993448000,-154.0,0.0002,2]
[425849789,1781993448000,-304.38,0.000186,7]
[425849872,1781993448000,-156.0,0.0002,2]
[425849870,1781993448000,-17587.83439039,0.0001995,15]
[425849869,1781993448000,-183.73,0.00019831,2]
[425849877,1781993448000,-335.0,0.0002,2]
[425849873,1781993448000,-200.0,0.0002,2]
[425849880,1781993448000,-527.0,0.0002,2]
[425849882,1781993448000,-1699.18,0.0002,2]
[425849881,1781993448000,-194.0,0.0002,2]
[425849883,1781993448000,-509.0,0.0002,2]
[425849884,1781993448000,-1185.10228652,0.0002,2]
[425849885,1781993448000,-2000.0,0.0002,7]
[425849848,1781993448000,-194.0,0.00019,2]
[425849859,1781993448000,-2000.0,0.00019153,2]
[425849879,1781993448000,-160.0,0.0002,2]
[425849857,1781993448000,-153.0,0.00019148,2]
[425849863,1781993448000,-1608.181,0.000193,2]
[425849796,1781993448000,-1360.0,0.00018809,2]
[425849800,1781993448000,-1229.0,0.00018809,2]
[425849818,1781993448000,-150.0,0.00018987,2]
[425849798,1781993448000,-383.0,0.00018809,2]
[425849820,1781993448000,-3560.0,0.00018987,2]
[425849805,1781993448000,-3647.0,0.0001881,2]
[425849814,1781993448000,-1798.80895522,0.0001892,2]
[425849812,1781993448000,-9131.5900683,0.000189,2]
[425849816,1781993448000,-150.0,0.00018987,2]
[425849810,1781993448000,-1266.95610069,0.00018814,2]
[425849803,1781993448000,-1215.0,0.0001881,2]
[425849827,1781993448000,-156.0,0.00019,2]
[425849867,1781993448000,-300.42,0.00019766,2]
[425849831,1781993448000,-155.0,0.00019,2]
[425849842,1781993448000,-151.0,0.00019,2]
[425849836,1781993448000,-512.0,0.00019,2]
[425849833,1781993448000,-292.0,0.00019,2]
[425849840,1781993448000,-335.0,0.00019,2]
[425849825,1781993448000,-507206.04510445,0.00019,2]
[425849829,1781993448000,-154.0,0.00019,2]
[425849844,1781993448000,-151.0,0.00019,2]
[425849822,1781993448000,-2057.34168753,0.00019,2]
[425849838,1781993448000,-165.0,0.00019,2]
[425849925,1781993449000,-152.0,0.00021112,2]
[425849919,1781993449000,-151.0,0.00021112,2]
[425849923,1781993449000,-151.0,0.00021112,2]
[425849921,1781993449000,-152.0,0.00021112,2]
[425849917,1781993449000,-152.50555259,0.00021112,2]
[425849918,1781993449000,-151.0,0.00021112,2]
[425849920,1781993449000,-500.0,0.00021112,2]
[425849915,1781993449000,-2080.17592889,0.00021112,2]
[425849922,1781993449000,-151.0,0.00021112,2]
[425849933,1781993449000,-151.0,0.00021112,2]
[425849916,1781993449000,-151.0,0.00021112,2]
[425849928,1781993449000,-151.0,0.00021112,2]
[425849939,1781993449000,-500.0,0.00021112,2]
[425849929,1781993449000,-500.0,0.00021112,2]
[425849931,1781993449000,-151.0,0.00021112,2]
[425849926,1781993449000,-151.0,0.00021112,2]
[425849930,1781993449000,-152.0,0.00021112,2]
[425849932,1781993449000,-500.0,0.00021112,2]
[425849934,1781993449000,-500.0,0.00021112,2]
[425849935,1781993449000,-152.0,0.00021112,2]
[425849937,1781993449000,-500.0,0.00021112,2]
[425849947,1781993449000,-151.0,0.00021112,2]
[425849941,1781993449000,-151.0,0.00021112,2]
[425849938,1781993449000,-151.0,0.00021112,2]
[425849936,1781993449000,-151.0,0.00021112,2]
[425849927,1781993449000,-500.0,0.00021112,2]
[425849913,1781993449000,-697.24954184,0.00021112,2]
[425849940,1781993449000,-152.0,0.00021112,2]
[425849914,1781993449000,-152.0,0.00021112,2]
[425849886,1781993449000,-1934.38338736,0.00020016,2]
[425849891,1781993449000,-289.64,0.00020563,2]
[425849887,1781993449000,-153.0,0.00020148,2]
[425849888,1781993449000,-200.0,0.000202,2]
[425849890,1781993449000,-200.0,0.00020402,2]
[425849889,1781993449000,-186.4,0.00020381,2]
[425849898,1781993449000,-292.0,0.00021,2]
[425849893,1781993449000,-200.0,0.00020606,2]
[425849892,1781993449000,-2005.9555727,0.00020564,2]
[425849896,1781993449000,-156.0,0.00021,2]
[425849895,1781993449000,-544.0,0.000209,2]
[425849897,1781993449000,-166.0,0.00021,2]
[425849924,1781993449000,-500.0,0.00021112,2]
[425849894,1781993449000,-226.73544188,0.000209,2]
[425849901,1781993449000,-527.0,0.00021,2]
[425849899,1781993449000,-512.0,0.00021,2]
[425849910,1781993449000,-151.0,0.00021112,2]
[425849905,1781993449000,-151.0,0.00021112,2]
[425849912,1781993449000,-151.0,0.00021112,2]
[425849902,1781993449000,-194.0,0.00021,2]
[425849911,1781993449000,-152.0,0.00021112,2]
[425849903,1781993449000,-151.0,0.00021112,2]
[425849904,1781993449000,-151.0,0.00021112,2]
[425849907,1781993449000,-578.20924308,0.00021112,2]
[425849909,1781993449000,-151.0,0.00021112,2]
[425849908,1781993449000,-201.93286099,0.00021112,2]
[425849900,1781993449000,-335.0,0.00021,2]
[425849942,1781993449000,-151.0,0.00021112,2]
[425849906,1781993449000,-151.0,0.00021112,2]
[425849946,1781993449000,-151.0,0.00021112,2]
[425849975,1781993449000,-151.0,0.00021222,2]
[425849972,1781993449000,-151.0,0.00021112,2]
[425849974,1781993449000,-151.0,0.00021167,2]
[425849980,1781993449000,-151.0,0.00021277,2]
[425849978,1781993449000,-418.96,0.00021273,2]
[425849977,1781993449000,-696.31,0.00021273,2]
[425849979,1781993449000,-12244.27,0.00021273,2]
[425849982,1781993449000,-509.0,0.00021304,3]
[425849997,1781993449000,-151.0,0.00021552,2]
[425849996,1781993449000,-151.0,0.00021497,2]
[425849995,1781993449000,-151.0,0.00021442,2]
[425849988,1781993449000,-151.0,0.00021378,2]
[425849976,1781993449000,-752.37,0.00021273,2]
[425849991,1781993449000,-151.0,0.00021385,2]
[425849986,1781993449000,-151.0,0.00021378,2]
[425849987,1781993449000,-151.0,0.00021378,2]
[425849992,1781993449000,-151.0,0.00021385,2]
[425849993,1781993449000,-151.0,0.00021387,2]
[425849994,1781993449000,-168.1,0.00021388,7]
[425849989,1781993449000,-151.0,0.00021378,2]
[425849999,1781993449000,-151.0,0.00021607,2]
[425850000,1781993449000,-1699.18,0.00021614,2]
[425850002,1781993449000,-151.0,0.00021662,2]
[425849998,1781993449000,-2370.48620157,0.0002159,2]
[425850001,1781993449000,-2157.14243826,0.0002166,2]
[425849943,1781993449000,-500.0,0.00021112,2]
[425849990,1781993449000,-151.0,0.00021378,2]
[425849981,1781993449000,-471.62,0.000213,2]
[425849985,1781993449000,-203.49,0.0002137,2]
[425849983,1781993449000,-151.0,0.00021332,2]
[425849984,1781993449000,-151.0,0.0002137,2]
[425849944,1781993449000,-500.0,0.00021112,2]
[425849948,1781993449000,-500.0,0.00021112,2]
[425849959,1781993449000,-500.0,0.00021112,2]
[425849955,1781993449000,-151.0,0.00021112,2]
[425849951,1781993449000,-152.0,0.00021112,2]
[425849954,1781993449000,-500.0,0.00021112,2]
[425849950,1781993449000,-151.0,0.00021112,2]
[425849952,1781993449000,-151.0,0.00021112,2]
[425849949,1781993449000,-500.0,0.00021112,2]
[425849953,1781993449000,-500.0,0.00021112,2]
[425849957,1781993449000,-151.0,0.00021112,2]
[425849958,1781993449000,-500.0,0.00021112,2]
[425849956,1781993449000,-152.0,0.00021112,2]
[425849945,1781993449000,-152.0,0.00021112,2]
[425849969,1781993449000,-151.0,0.00021112,2]
[425849961,1781993449000,-152.0,0.00021112,2]
[425849960,1781993449000,-151.0,0.00021112,2]
[425849964,1781993449000,-500.0,0.00021112,2]
[425849963,1781993449000,-151.0,0.00021112,2]
[425849962,1781993449000,-500.0,0.00021112,2]
[425849965,1781993449000,-500.0,0.00021112,2]
[425849966,1781993449000,-151.0,0.00021112,2]
[425849967,1781993449000,-500.0,0.00021112,2]
[425849971,1781993449000,-500.0,0.00021112,2]
[425849968,1781993449000,-151.0,0.00021112,2]
[425849970,1781993449000,-500.0,0.00021112,2]
[425849973,1781993449000,-153.0,0.00021148,2]
[425850043,1781993450000,-512.0,0.00023,2]
[425850039,1781993450000,-150.0,0.0002254,2]
[425850030,1781993450000,-395.98,0.00022227,2]
[425850041,1781993450000,-240.5749,0.00022647,2]
[425850042,1781993450000,-292.0,0.00023,2]
[425850037,1781993450000,-220.69816638,0.00022415,2]
[425850046,1781993450000,-194.0,0.00023,2]
[425850034,1781993450000,-185.20730679,0.00022407,2]
[425850045,1781993450000,-527.0,0.00023,2]
[425850036,1781993450000,-190.55760938,0.00022407,2]
[425850035,1781993450000,-185.20730679,0.00022407,2]
[425850044,1781993450000,-335.0,0.00023,2]
[425850038,1781993450000,-331.04724957,0.00022528,14]
[425850040,1781993450000,-509.0,0.00022609,4]
[425850056,1781993450000,-500.0,0.00023356,7]
[425850051,1781993450000,-163.41612387,0.00023219,2]
[425850052,1781993450000,-1699.18,0.00023228,7]
[425850055,1781993450000,-160.3833,0.00023294,2]
[425850048,1781993450000,-173.0,0.00023,7]
[425850050,1781993450000,-185.19,0.00023053,2]
[425850057,1781993450000,-150.0,0.00023667,2]
[425850053,1781993450000,-320.7665,0.0002325,2]
[425850047,1781993450000,-471.62,0.00023,7]
[425850054,1781993450000,-1600.84879186,0.00023275,2]
[425850059,1781993450000,-1411.900551,0.0002375,2]
[425850060,1781993450000,-599.60298507,0.00023851,2]
[425850062,1781993450000,-2370.48620157,0.00023895,2]
[425850049,1781993450000,-482.4,0.00023048,2]
[425850028,1781993450000,-2244.85973877,0.00022208,2]
[425850008,1781993450000,-1229.0,0.00021809,2]
[425850023,1781993450000,-194.0,0.00022,2]
[425850063,1781993450000,-226.73544188,0.000239,2]
[425850006,1781993450000,-1360.0,0.00021809,2]
[425850004,1781993450000,-544.0,0.000218,2]
[425850003,1781993450000,-193.28280736,0.00021756,2]
[425850007,1781993450000,-383.0,0.00021809,2]
[425850005,1781993450000,-1276.0,0.00021809,2]
[425850021,1781993450000,-335.0,0.00022,2]
[425850020,1781993450000,-512.0,0.00022,2]
[425850010,1781993450000,-3647.0,0.0002181,2]
[425850009,1781993450000,-1215.0,0.0002181,2]
[425850012,1781993450000,-589.06618482,0.000219,2]
[425850013,1781993450000,-5000.0,0.00021918,2]
[425850014,1781993450000,-150.0,0.00021918,2]
[425850011,1781993450000,-6081.0,0.0002181,2]
[425850015,1781993450000,-154.28674146,0.00021918,2]
[425850018,1781993450000,-166.0,0.00022,2]
[425850017,1781993450000,-3560.0,0.00021987,2]
[425850019,1781993450000,-292.0,0.00022,2]
[425850016,1781993450000,-429.70900624,0.00021955,2]
[425850031,1781993450000,-508.06,0.00022336,2]
[425850033,1781993450000,-185.2073068,0.00022407,2]
[425850022,1781993450000,-527.0,0.00022,2]
[425850032,1781993450000,-186.4,0.00022353,2]
[425850027,1781993450000,-151.0,0.000222,2]
[425850024,1781993450000,-160.18000847,0.00022148,2]
[425850025,1781993450000,-151.0,0.00022192,2]
[425850026,1781993450000,-151.0,0.00022192,2]
[425850029,1781993450000,-396.28,0.00022226,2]
[425850058,1781993450000,-256.11317869,0.000237,2]
[425850065,1781993450000,-292.0,0.00024,2]
[425850123,1781993450000,-161.87,0.00025743,30]
[425850102,1781993450000,-646.43,0.00025,2]
[425850097,1781993450000,-3560.0,0.00024987,2]
[425850105,1781993450000,-508.06,0.00025002,2]
[425850107,1781993450000,-161.9,0.000252,7]
[425850104,1781993450000,-1185.10228652,0.00025,2]
[425850106,1781993450000,-400.26909634,0.00025108,7]
[425850100,1781993450000,-121517.05410674,0.00025,5]
[425850103,1781993450000,-1425.9991297,0.00025,2]
[425850098,1781993450000,-166.77712625,0.0002499,2]
[425850099,1781993450000,-216126.28010676,0.00025,2]
[425850116,1781993450000,-2011.96462247,0.00025481,7]
[425850120,1781993450000,-150.0,0.00025704,2]
[425850117,1781993450000,-274.62718831,0.00025548,7]
[425850108,1781993450000,-161.87,0.000252,7]
[425850114,1781993450000,-644.29,0.00025479,2]
[425850112,1781993450000,-400.26909634,0.00025403,14]
[425850119,1781993450000,-400.26909634,0.00025698,14]
[425850115,1781993450000,-1542.34671911,0.00025481,7]
[425850118,1781993450000,-400.26909634,0.00025551,14]
[425850109,1781993450000,-509.0,0.00025217,7]
[425850110,1781993450000,-400.26909634,0.00025256,7]
[425850111,1781993450000,-169.5329833,0.00025397,2]
[425850113,1781993450000,-151.0,0.00025468,2]
[425850121,1781993450000,-162.0,0.00025743,30]
[425850068,1781993450000,-540.0,0.00024,2]
[425850122,1781993450000,-161.9,0.00025743,30]
[425850124,1781993450000,-752.37,0.00025786,2]
[425850096,1781993450000,-400.26909634,0.00024961,7]
[425850091,1781993450000,-400.26909634,0.00024813,7]
[425850101,1781993450000,-160.0,0.00025,7]
[425850087,1781993450000,-1229.0,0.00024809,2]
[425850061,1781993450000,-573.65,0.0002387,2]
[425850090,1781993450000,-6081.0,0.0002481,2]
[425850069,1781993450000,-206.0,0.00024,2]
[425850066,1781993450000,-521.0,0.00024,2]
[425850067,1781993450000,-342.0,0.00024,2]
[425850082,1781993450000,-153.9496524,0.00024753,2]
[425850070,1781993450000,-186.4,0.00024324,2]
[425850081,1781993450000,-57426.37175359,0.0002475,2]
[425850073,1781993450000,-216.28381402,0.000245,7]
[425850078,1781993450000,-161.87,0.00024658,2]
[425850074,1781993450000,-400.26909634,0.00024518,2]
[425850077,1781993450000,-161.9,0.00024658,2]
[425850080,1781993450000,-482.42,0.00024692,2]
[425850072,1781993450000,-17877.46475885,0.000245,2]
[425850064,1781993450000,-509.0,0.00023913,5]
[425850076,1781993450000,-1000.0,0.00024658,2]
[425850079,1781993450000,-400.26909634,0.00024666,2]
[425850083,1781993450000,-183.91513865,0.00024781,30]
[425850094,1781993450000,-471.62,0.000249,7]
[425850086,1781993450000,-383.0,0.00024809,2]
[425850088,1781993450000,-1215.0,0.0002481,2]
[425850084,1781993450000,-1276.0,0.00024809,2]
[425850085,1781993450000,-1360.0,0.00024809,2]
[425850089,1781993450000,-3647.0,0.0002481,2]
[425850093,1781993450000,-150.0,0.0002485,2]
[425850092,1781993450000,-1699.18,0.00024841,7]
[425850075,1781993450000,-176.57,0.00024658,2]
[425850071,1781993450000,-26255.3,0.000245,7]
[425850095,1781993450000,-200.0,0.000249,9]
[425850166,1781993451000,-152.0,0.00027273,3]
[425850159,1781993451000,-302.0,0.00027041,8]
[425850162,1781993451000,-482.4,0.00027115,2]
[425850157,1781993451000,-1254.02,0.00026945,120]
[425850167,1781993451000,-167.88816517,0.00027329,2]
[425850164,1781993451000,-396.28,0.00027138,2]
[425850156,1781993451000,-226.73544188,0.000269,2]
[425850161,1781993451000,-644.29,0.00027115,2]
[425850155,1781993451000,-153.9496524,0.00026837,60]
[425850163,1781993451000,-482.4,0.00027138,2]
[425850158,1781993451000,-250.0,0.00027041,8]
[425850160,1781993451000,-185.19,0.00027115,2]
[425850168,1781993451000,-242.99727606,0.00027397,7]
[425850169,1781993451000,-500.0,0.00027397,2]
[425850175,1781993451000,-1500.0,0.00027397,2]
[425850176,1781993451000,-151.0,0.00027397,2]
[425850178,1781993451000,-151.0,0.00027397,2]
[425850177,1781993451000,-151.0,0.00027397,2]
[425850171,1781993451000,-500.0,0.00027397,2]
[425850170,1781993451000,-500.0,0.00027397,2]
[425850179,1781993451000,-151.0,0.00027397,2]
[425850172,1781993451000,-331.43054754,0.00027397,2]
[425850173,1781993451000,-150.0,0.00027397,2]
[425850174,1781993451000,-270.02339087,0.00027397,2]
[425850149,1781993451000,-332.928418,0.00026426,2]
[425850165,1781993451000,-396.26,0.00027138,2]
[425850142,1781993451000,-573.61,0.00026293,2]
[425850180,1781993451000,-151.0,0.00027397,2]
[425850148,1781993451000,-336.830442,0.00026426,2]
[425850125,1781993451000,-696.31,0.00025786,2]
[425850132,1781993451000,-243.0,0.000261,2]
[425850127,1781993451000,-12244.27,0.00025786,2]
[425850130,1781993451000,-400.26909634,0.00025993,30]
[425850131,1781993451000,-150.0,0.00026093,2]
[425850128,1781993451000,-153.9496524,0.00025795,14]
[425850126,1781993451000,-418.96,0.00025786,2]
[425850129,1781993451000,-400.26909634,0.00025845,30]
[425850134,1781993451000,-2424.0,0.000261,2]
[425850133,1781993451000,-731.0,0.000261,2]
[425850135,1781993451000,-243.0,0.000261,2]
[425850137,1781993451000,-400.26909634,0.0002614,30]
[425850150,1781993451000,-400.26909634,0.00026435,60]
[425850140,1781993451000,-260.8825429,0.00026264,60]
[425850136,1781993451000,-363.0,0.000261,2]
[425850138,1781993451000,-913.16,0.000262,14]
[425850141,1781993451000,-400.26909634,0.00026288,30]
[425850146,1781993451000,-169.5329833,0.00026397,2]
[425850152,1781993451000,-509.0,0.00026522,8]
[425850145,1781993451000,-396.23,0.00026309,2]
[425850153,1781993451000,-400.26909634,0.00026583,60]
[425850151,1781993451000,-1699.18,0.00026455,7]
[425850144,1781993451000,-644.09,0.00026301,2]
[425850143,1781993451000,-186.4,0.00026296,2]
[425850147,1781993451000,-471.62,0.000264,7]
[425850154,1781993451000,-621.78829552,0.0002659,2]
[425850139,1781993451000,-2370.48620157,0.000262,2]
[425850187,1781993451000,-151.0,0.00027397,2]
[425850212,1781993451000,-972.31,0.000274,2]
[425850185,1781993451000,-151.0,0.00027397,2]
[425850213,1781993451000,-1100.29,0.000275,7]
[425850216,1781993451000,-1609.0,0.00027512,10]
[425850215,1781993451000,-500.0,0.000275,7]
[425850219,1781993451000,-450.05,0.0002755,30]
[425850217,1781993451000,-161.9,0.0002755,2]
[425850221,1781993451000,-1154.2656495,0.00027605,2]
[425850225,1781993451000,-508.06,0.00027668,2]
[425850218,1781993451000,-161.87,0.0002755,2]
[425850224,1781993451000,-161.87,0.00027666,7]
[425850222,1781993451000,-1254.02,0.0002763,120]
[425850220,1781993451000,-331.28,0.0002755,30]
[425850223,1781993451000,-161.9,0.00027666,7]
[425850229,1781993451000,-161.9,0.00027782,30]
[425850226,1781993451000,-515.4,0.00027711,7]
[425850230,1781993451000,-161.87,0.00027782,30]
[425850228,1781993451000,-331.28,0.00027711,7]
[425850227,1781993451000,-450.05,0.00027711,7]
[425850183,1781993451000,-151.0,0.00027397,2]
[425850231,1781993451000,-313.43,0.00027795,2]
[425850234,1781993451000,-1229.0,0.00027809,2]
[425850235,1781993451000,-1215.0,0.0002781,2]
[425850233,1781993451000,-383.0,0.00027809,2]
[425850236,1781993451000,-3647.0,0.0002781,2]
[425850238,1781993451000,-509.0,0.00027826,9]
[425850239,1781993451000,-515.4,0.00027872,2]
[425850209,1781993451000,-1000.0,0.000274,2]
[425850214,1781993451000,-544.0,0.000275,7]
[425850232,1781993451000,-1360.0,0.00027809,2]
[425850208,1781993451000,-921.49,0.000274,7]
[425850210,1781993451000,-1229.08,0.000274,2]
[425850186,1781993451000,-151.0,0.00027397,2]
[425850189,1781993451000,-151.0,0.00027397,2]
[425850182,1781993451000,-151.0,0.00027397,2]
[425850184,1781993451000,-151.0,0.00027397,2]
[425850188,1781993451000,-151.0,0.00027397,2]
[425850181,1781993451000,-151.0,0.00027397,2]
[425850191,1781993451000,-151.0,0.00027397,2]
[425850193,1781993451000,-151.0,0.00027397,2]
[425850192,1781993451000,-151.0,0.00027397,2]
[425850194,1781993451000,-151.0,0.00027397,2]
[425850199,1781993451000,-692.82,0.00027397,20]
[425850195,1781993451000,-151.0,0.00027397,2]
[425850190,1781993451000,-151.0,0.00027397,2]
[425850196,1781993451000,-151.0,0.00027397,2]
[425850206,1781993451000,-5448.55,0.00027397,10]
[425850198,1781993451000,-176.57,0.00027397,2]
[425850211,1781993451000,-1027.69,0.000274,2]
[425850207,1781993451000,-150.0,0.00027398,2]
[425850204,1781993451000,-300.0,0.00027397,2]
[425850205,1781993451000,-6538.26,0.00027397,10]
[425850203,1781993451000,-7845.92,0.00027397,10]
[425850201,1781993451000,-151.0,0.00027397,2]
[425850200,1781993451000,-151.0,0.00027397,2]
[425850202,1781993451000,-194.180659,0.00027397,2]
[425850197,1781993451000,-256.810259,0.00027397,2]
[425850237,1781993451000,-6081.0,0.0002781,2]
[425850261,1781993452000,-161.9,0.00028014,7]
[425850266,1781993452000,-655.76,0.00028057,7]
[425850265,1781993452000,-331.28,0.00028033,30]
[425850263,1781993452000,-515.4,0.00028033,30]
[425850264,1781993452000,-450.05,0.00028033,30]
[425850268,1781993452000,-1699.18,0.00028069,7]
[425850267,1781993452000,-556.88,0.00028057,7]
[425850270,1781993452000,-1296.45114757,0.000281,2]
[425850272,1781993452000,-1296.45114755,0.000281,2]
[425850278,1781993452000,-450.05,0.00028194,7]
[425850276,1781993452000,-330.51,0.00028194,7]
[425850274,1781993452000,-161.89,0.0002813,30]
[425850280,1781993452000,-444.63442189,0.000282,2]
[425850282,1781993452000,-444.63442188,0.000282,2]
[425850275,1781993452000,-519.49,0.00028194,7]
[425850281,1781993452000,-444.63442188,0.000282,2]
[425850262,1781993452000,-161.87,0.00028014,7]
[425850269,1781993452000,-1254.02,0.00028096,120]
[425850258,1781993452000,-160.0,0.00028,3]
[425850240,1781993452000,-450.05,0.00027872,2]
[425850259,1781993452000,-216.28381402,0.00028,3]
[425850245,1781993452000,-482.37,0.00027936,2]
[425850241,1781993452000,-331.28,0.00027872,2]
[425850248,1781993452000,-573.64,0.00027937,2]
[425850246,1781993452000,-185.19,0.00027937,2]
[425850244,1781993452000,-396.26,0.00027936,2]
[425850247,1781993452000,-184.99,0.00027937,2]
[425850242,1781993452000,-161.9,0.00027898,2]
[425850243,1781993452000,-161.87,0.00027898,2]
[425850256,1781993452000,-31336.4616766,0.00028,3]
[425850251,1781993452000,-396.28,0.00027945,2]
[425850257,1781993452000,-160.0,0.00028,10]
[425850249,1781993452000,-396.28,0.00027945,2]
[425850250,1781993452000,-486.06,0.00027945,2]
[425850260,1781993452000,-471.62,0.00028,7]
[425850253,1781993452000,-190.07,0.00028,7]
[425850254,1781993452000,-11661.88971376,0.00028,3]
[425850252,1781993452000,-3560.0,0.00027987,2]
[425850255,1781993452000,-16135.51729786,0.00028,2]
[425850273,1781993452000,-161.91,0.0002813,30]
[425850283,1781993452000,-186.4,0.00028267,2]
[425850279,1781993452000,-331.28,0.00028194,7]
[425850301,1781993452000,-519.49,0.00028677,7]
[425850308,1781993452000,-150.0,0.00028767,2]
[425850310,1781993452000,-250.0,0.00028814,12]
[425850312,1781993452000,-519.49,0.00028838,2]
[425850317,1781993452000,-292.0,0.00028871,30]
[425850306,1781993452000,-397.44,0.00028759,2]
[425850316,1781993452000,-155.0,0.00028871,30]
[425850309,1781993452000,-921.49,0.000288,7]
[425850307,1781993452000,-270.02339087,0.00028766,2]
[425850311,1781993452000,-515.4,0.00028838,2]
[425850318,1781993452000,-512.0,0.00028871,30]
[425850314,1781993452000,-156.0,0.00028871,30]
[425850315,1781993452000,-154.0,0.00028871,30]
[425850321,1781993452000,-335.0,0.00028876,30]
[425850319,1781993452000,-153.0,0.00028871,30]
[425850320,1781993452000,-155.0,0.00028871,30]
[425850277,1781993452000,-515.4,0.00028194,7]